bitfinex/quotes_ETHUSD_20251201
["timestamp","ask_amount","ask_price","bid_price","bid_amount"]
[1764567552830,0.35319396,2818.6,2818.5,3.54798651]
[1764567553210,0.35319396,2818.6,2818.5,0.4818]
[1764567553901,0.35319396,2818.6,2818.5,4.02978651]
[1764567554298,0.80549396,2818.6,2818.3,0.001]
[1764567554498,0.35319396,2818.6,2818.5,0.4818]
[1764567556634,0.80549396,2818.6,2818.3,0.001]
[1764567556808,0.80359396,2818.4,2818.3,0.001]
[1764567557007,1.02859396,2818.4,2818.3,0.001]
[1764567558332,0.57819396,2818.4,2818.3,0.001]
[1764567558533,1.03049396,2818.4,2818.3,0.001]
[1764567558937,0.57819396,2818.4,2818.3,0.001]
[1764567559515,5.43851036,2818.4,2818.3,0.001]
[1764567559715,3.51463141,2818.4,2818.3,0.001]
[1764567560019,2.16159207,2818.4,2818.3,0.001]
[1764567560542,1.75608807,2818.4,2818.3,0.001]
[1764567561242,2.21048807,2818.4,2818.3,0.001]
[1764567561537,14.08117347,2818.4,2818.3,0.001]
[1764567562038,36.16410447,2818.4,2818.3,0.001]
[1764567562239,39.63852745,2818.4,2818.3,0.001]
[1764567564342,24.42129445,2818.4,2818.3,0.001]
[1764567564825,32.29911845,2818.4,2818.3,0.001]
[1764567565033,43.76466213,2818.4,2818.1,0.001]
[1764567565226,27.23233507,2818.2,2818.1,0.001]
[1764567565747,29.74439827,2818.2,2818.1,0.001]
[1764567566043,30.31609827,2818.2,2818.1,0.001]
[1764567566827,32.06271127,2818.2,2818.1,0.001]
[1764567567029,31.12600827,2818.2,2818.1,0.001]
[1764567567230,32.11304407,2818.2,2818.1,0.001]
[1764567567543,31.33046907,2818.2,2818.1,0.001]
[1764567567866,31.53429207,2818.1,2818.0,0.001]
[1764567568063,32.43929207,2818.1,2818.0,0.001]
[1764567568577,26.91850407,2818.1,2818.0,0.001]
[1764567568881,3.51134696,2818.1,2818.0,0.001]
[1764567569178,33.51134696,2818.1,2818.0,0.001]
[1764567569541,37.05983707,2818.1,2818.0,0.001]
[1764567569852,23.28318807,2818.1,2818.0,0.001]
[1764567570044,22.11638107,2818.1,2818.0,0.001]
[1764567570632,16.07939507,2818.1,2818.0,0.001]
[1764567570835,5.87873896,2818.1,2818.0,0.001]
[1764567571065,6.10373896,2818.1,2818.0,0.001]
[1764567571256,6.14514896,2818.1,2818.0,0.001]
[1764567571579,0.78399396,2818.1,2818.0,0.001]
[1764567571767,0.4762,2818.8,2818.0,0.9284]
[1764567571975,0.35319396,2818.2,2818.1,0.6187]
[1764567572157,0.57819396,2818.2,2818.1,0.6187]
[1764567572471,0.57819396,2818.2,2818.1,1.0851]
[1764567573088,0.225,2818.2,2818.1,0.4664]
[1764567573375,0.57819396,2818.2,2818.1,0.4664]
[1764567575058,0.002,2818.8,2818.1,5.03529102]
[1764567575262,0.35519396,2818.8,2818.7,0.4664]
[1764567575482,0.58019396,2818.8,2818.7,0.4664]
[1764567575680,0.227,2818.8,2818.7,0.9274]
[1764567575867,0.58019396,2818.8,2818.7,4.47513477]
[1764567576059,0.227,2818.8,2818.7,5.27743418]
[1764567576264,0.002,2818.8,2818.7,5.27743418]
[1764567577162,0.002,2818.8,2818.7,4.47513477]
[1764567577361,0.35519396,2818.8,2818.7,4.47513477]
[1764567577590,0.83809396,2818.8,2818.1,0.1577]
[1764567577758,0.35319396,2818.2,2818.1,4.16718362]
[1764567577960,0.225,2818.2,2818.1,4.16718362]
[1764567578168,0.225,2818.2,2818.1,4.63358362]
[1764567578806,0.225,2818.2,2818.1,5.45200336]
[1764567579661,0.225,2818.2,2818.1,4.63358362]
[1764567580964,0.57819396,2818.2,2818.1,4.63358362]
[1764567581792,0.225,2818.2,2818.1,4.63358362]
[1764567582928,0.57819396,2818.2,2818.0,0.001]
[1764567583085,0.35319396,2818.1,2818.0,3.54960078]
[1764567583516,0.35319396,2818.1,2818.0,4.01600078]
[1764567584030,0.35319396,2818.1,2818.0,0.4674]
[1764567584518,0.35319396,2818.1,2818.0,0.001]
[1764567586109,0.84389396,2818.1,2818.0,0.001]
[1764567587511,0.35319396,2818.1,2818.0,0.4674]
[1764567587823,0.35319396,2818.1,2818.0,0.001]
[1764567588025,0.35319396,2818.1,2818.0,0.4674]
[1764567588202,0.35319396,2818.1,2818.0,3.54961603]
[1764567588401,0.35319396,2818.1,2818.0,0.001]
[1764567588588,0.35319396,2818.1,2818.0,0.4674]
[1764567588991,0.35319396,2818.1,2818.0,4.47701603]
[1764567589326,0.57819396,2818.2,2818.0,8.02563206]
[1764567589490,0.57819396,2818.2,2818.1,1.0851]
[1764567590124,0.35319396,2818.3,2818.2,3.5483642]
[1764567590291,0.225,2818.3,2818.2,3.5483642]
[1764567590517,0.57819396,2818.3,2818.2,4.4757642]
[1764567590715,0.225,2818.3,2818.2,4.4757642]
[1764567592058,0.57819396,2818.3,2818.2,0.4664]
[1764567592814,0.57819396,2818.3,2818.2,4.0147642]
[1764567593543,0.225,2818.3,2818.2,4.0147642]
[1764567593929,0.57819396,2818.3,2818.2,4.0147642]
[1764567594337,0.225,2818.3,2818.2,4.0147642]
[1764567594647,0.57819396,2818.3,2818.2,4.0147642]
[1764567595526,0.58019396,2818.3,2818.2,4.0147642]
[1764567598868,0.58019396,2818.3,2818.2,3.5483642]
[1764567599028,1.05069396,2818.3,2818.2,3.5483642]
[1764567599233,1.1707,2818.3,2818.0,0.001]
[1764567599461,1.1707,2818.3,2818.0,3.54961603]
[1764567599462,0.2104,2818.1,2818.0,3.54961603]
[1764567599661,0.227,2818.3,2818.0,0.4989]
[1764567599829,0.35319396,2818.1,2818.0,0.4989]
[1764567600030,0.227,2818.3,2818.0,0.4989]
[1764567600263,0.876004,2818.1,2818.0,0.001]
[1764567600473,2.9404472,2818.1,2818.0,0.001]
[1764567600658,2.21485309,2818.1,2818.0,0.001]
[1764567600963,16.32184531,2818.1,2818.0,0.001]
[1764567602936,6.48893731,2818.1,2818.0,0.001]
[1764567603137,21.77447431,2818.1,2818.0,0.001]
[1764567603338,21.41903631,2818.1,2818.0,0.001]
[1764567603863,20.42997331,2818.1,2818.0,0.001]
[1764567605779,23.35726831,2818.1,2818.0,0.001]
[1764567605955,23.40726831,2818.1,2818.0,0.001]
[1764567606539,36.53893731,2818.1,2818.0,0.001]
[1764567606773,28.94240231,2818.1,2818.0,0.001]
[1764567607577,33.87061731,2818.1,2818.0,0.001]
[1764567608048,10.61206831,2818.1,2818.0,0.001]
[1764567608250,1.33614909,2818.1,2818.0,0.001]
[1764567608456,0.57819396,2818.1,2818.0,0.4989]
[1764567609253,1.04869396,2818.1,2818.0,0.001]
[1764567609456,6.20148218,2818.1,2818.0,0.001]
[1764567609660,34.24512922,2818.1,2818.0,0.001]
[1764567609877,30.25537918,2818.1,2818.0,0.001]
[1764567610178,31.76343209,2818.1,2818.0,0.001]
[1764567610377,23.02165809,2818.1,2818.0,0.001]
[1764567610578,14.24280509,2818.1,2818.0,0.001]
[1764567610780,1.91969207,2818.1,2818.0,0.4989]
[1764567610980,1.91969207,2818.1,2818.0,0.001]
[1764567611893,1.30378807,2818.1,2818.0,0.4989]
[1764567612073,0.35519396,2818.3,2818.0,0.9783]
[1764567612248,0.57819396,2818.1,2818.0,0.4804]
[1764567612450,0.57819396,2818.1,2818.0,0.001]
[1764567612669,0.57819396,2818.1,2818.0,0.6566]
[1764567612849,0.225,2818.1,2818.0,0.6566]
[1764567613072,0.57819396,2818.1,2818.0,1.136]
[1764567613267,0.225,2818.1,2818.0,1.136]
[1764567613485,0.57819396,2818.1,2818.0,1.136]
[1764567613979,0.225,2818.1,2818.0,4.68461603]
[1764567614190,0.227,2818.1,2818.0,4.68461603]
[1764567614385,0.58019396,2818.1,2818.0,5.50815139]
[1764567614613,0.002,2818.1,2818.0,5.50815139]
[1764567615219,0.002,2818.3,2818.0,9.05676742]
[1764567615506,0.002,2818.3,2818.2,0.4979]
[1764567615882,0.002,2818.3,2818.2,4.5256642]
[1764567616094,0.002,2818.3,2818.2,5.43130292]
[1764567620549,0.12522583,2818.7,2818.6,0.4979]
[1764567621026,0.12522583,2818.7,2818.6,0.9773]
[1764567621226,0.002,2818.8,2818.6,9.80110828]
[1764567621439,0.002,2818.8,2818.7,0.9773]
[1764567621639,0.002,2818.8,2818.7,1.95741083]
[1764567621849,0.002,2818.8,2818.7,5.5051456]
[1764567624650,0.002,2818.8,2818.7,4.04563477]
[1764567624817,0.35519396,2818.8,2818.7,4.04563477]
[1764567625216,0.002,2818.8,2818.7,4.04563477]
[1764567625644,0.35519396,2818.8,2818.7,4.04563477]
[1764567625833,0.002,2818.8,2818.7,4.50783477]
[1764567626033,0.002,2818.8,2818.7,4.04563477]
[1764567627319,0.35519396,2818.8,2818.7,4.04563477]
[1764567628055,0.002,2818.8,2818.7,5.3026616]
[1764567628239,0.002,2818.8,2818.7,5.26718426]
[1764567628440,0.002,2818.8,2818.7,5.3026616]
[1764567629538,0.002,2818.8,2818.7,5.26718426]
[1764567629970,0.002,2818.8,2818.7,5.3026616]
[1764567630333,0.002,2818.8,2818.7,5.5276616]
[1764567630557,1e-08,2819.1,2818.7,5.5276616]
[1764567630758,1e-08,2819.1,2819.0,8.57824007]
[1764567631150,1e-08,2819.1,2819.0,9.04044007]
[1764567631674,1e-08,2819.1,2819.0,8.57824007]
[1764567631867,1e-08,2819.1,2818.7,7.55766954]
[1764567632042,0.35319396,2819.0,2818.7,11.10540431]
[1764567632371,0.35319396,2819.0,2818.8,0.4622]
[1764567632568,0.35319396,2819.0,2818.9,0.4684]
[1764567632770,1e-08,2819.1,2818.7,7.09546954]
[1764567632951,0.85069397,2819.1,2818.7,7.09546954]
[1764567633748,0.35319396,2818.8,2818.7,3.54773477]
[1764567634068,0.49750001,2819.1,2818.5,7.096935]
[1764567634574,0.35319396,2818.8,2818.5,7.096935]
[1764567634884,1.00309396,2818.6,2818.5,0.001]
[1764567635393,1.50059396,2818.6,2818.5,0.001]
[1764567637164,0.225,2818.7,2818.5,0.001]
[1764567637366,0.4728,2818.6,2818.5,0.001]
[1764567637694,0.82599396,2818.6,2818.5,0.001]
[1764567638298,0.225,2818.7,2818.5,0.4694]
[1764567638469,0.35319396,2818.6,2818.5,0.001]
[1764567639502,0.35319396,2818.6,2818.5,0.4694]
[1764567640301,0.225,2818.7,2818.5,4.01738651]
[1764567640477,0.57819396,2818.7,2818.6,0.4684]
[1764567640684,0.225,2818.7,2818.6,0.4684]
[1764567640992,0.225,2818.7,2818.5,7.85717066]
[1764567641195,0.57819396,2818.7,2818.5,7.09697302]
[1764567641370,0.225,2818.7,2818.5,7.09697302]
[1764567641576,0.57819396,2818.7,2818.5,3.54898651]
[1764567642100,0.57819396,2818.7,2818.5,7.09697302]
[1764567642284,0.35319396,2818.6,2818.5,0.001]
[1764567642599,0.225,2818.7,2818.5,0.001]
[1764567642807,0.57819396,2818.7,2818.5,0.001]
[1764567643620,0.225,2818.7,2818.5,0.001]
[1764567643791,0.57819396,2818.7,2818.6,0.4684]
[1764567644514,0.225,2818.7,2818.6,4.01626064]
[1764567645217,0.225,2818.7,2818.6,4.05173924]
[1764567645418,0.57819396,2818.7,2818.6,4.05173924]
[1764567645718,0.225,2818.7,2818.6,4.05173924]
[1764567645919,0.57819396,2818.7,2818.6,4.05173924]
[1764567646833,0.225,2818.7,2818.6,4.05173924]
[1764567647023,0.225,2818.7,2818.6,4.01626064]
[1764567650503,0.225,2818.7,2818.6,4.05173924]
[1764567651244,0.57819396,2818.7,2818.6,4.51393924]
[1764567651552,0.225,2818.7,2818.6,4.51393924]
[1764567651849,0.225,2818.7,2818.6,5.42669793]
[1764567652542,0.225,2818.7,2818.6,4.96449793]
[1764567653217,0.225,2818.7,2818.6,4.92901933]
[1764567653418,0.225,2818.7,2818.6,5.41931933]
[1764567653923,0.225,2818.7,2818.6,4.92901933]
[1764567654125,0.225,2818.7,2818.6,4.02016064]
[1764567654329,0.225,2818.7,2818.6,4.05563924]
[1764567654520,0.225,2818.7,2818.6,4.54593924]
[1764567654844,0.225,2818.7,2818.6,4.02016064]
[1764567655020,1.1498,2818.7,2818.6,3.54786064]
[1764567655216,1.50299396,2818.7,2818.6,3.54786064]
[1764567655620,1.04139396,2818.7,2818.6,3.54786064]
[1764567656618,0.35319396,2818.6,2818.5,0.001]
[1764567656816,0.35319396,2818.6,2818.5,0.4733]
[1764567659473,0.35319396,2818.6,2818.5,4.02128651]
[1764567659973,0.225,2818.7,2818.5,8.85209175]
[1764567660138,0.225,2818.7,2818.6,0.4723]
[1764567660338,1e-08,2819.1,2818.6,0.4723]
[1764567660647,0.35319396,2818.8,2818.7,0.03547734]
[1764567660957,0.225,2818.9,2818.7,0.03547734]
[1764567661133,0.9248,2818.8,2818.6,0.0354786]
[1764567661467,0.35319396,2818.7,2818.6,7.09572128]
[1764567661670,0.81639396,2818.7,2818.6,3.54786064]
[1764567662039,0.225,2818.9,2818.6,8.05832128]
[1764567662273,0.225,2818.9,2818.8,0.4723]
[1764567663453,0.225,2818.9,2818.8,4.01990891]
[1764567663867,0.225,2818.9,2818.8,4.51020891]
[1764567664071,0.225,2818.9,2818.8,4.54568499]
[1764567665170,1e-08,2819.1,2818.8,11.9432939]
[1764567665362,1e-08,2819.1,2819.0,0.4723]
[1764567665558,1e-08,2819.1,2819.0,4.01965721]
[1764567666158,0.81639397,2819.1,2819.0,3.54735721]
[1764567666384,1.27799397,2819.1,2819.0,3.54735721]
[1764567667987,0.81639397,2819.1,2819.0,3.54735721]
[1764567668358,1e-08,2819.1,2819.0,5.80646705]
[1764567669795,1e-08,2819.1,2819.0,5.28069348]
[1764567669982,1e-08,2819.1,2819.0,5.77099348]
[1764567670367,1e-08,2819.1,2819.0,5.80646705]
[1764567670888,1e-08,2819.1,2819.0,9.62099348]
[1764567672777,1e-08,2819.1,2819.0,9.13069348]
[1764567673399,0.92480001,2819.1,2819.0,3.54735721]
[1764567673599,1.27799397,2819.1,2819.0,3.54735721]
[1764567674806,0.92480001,2819.1,2818.5,10.64495953]
[1764567675011,0.56799396,2819.0,2818.5,10.64495953]
[1764567675310,0.35319396,2818.9,2818.6,1.11352595]
[1764567675507,0.56799396,2819.0,2818.6,1.11352595]
[1764567675684,0.35319396,2818.9,2818.6,1.11352595]
[1764567676010,0.81479396,2819.0,2818.6,1.11352595]
[1764567676183,0.6597,2818.9,2818.6,1.11352595]
[1764567676802,0.1981,2818.9,2818.7,7.13094688]
[1764567676998,0.35319396,2819.0,2818.7,7.09546954]
[1764567677206,0.35319396,2818.9,2818.7,7.09546954]
[1764567677413,1e-08,2819.1,2818.7,7.09546954]
[1764567677414,0.4616,2819.0,2818.7,7.09546954]
[1764567677713,0.35319396,2818.9,2818.7,7.09546954]
[1764567678217,0.81479396,2819.0,2818.7,7.09546954]
[1764567678417,0.35319396,2819.0,2818.8,0.03547608]
[1764567678617,1e-08,2819.1,2818.8,0.03547608]
[1764567678618,1e-08,2819.1,2818.9,0.4723]
[1764567678820,1e-08,2819.1,2819.0,0.03547357]
[1764567679013,1e-08,2819.1,2819.0,4.05513078]
[1764567679214,1e-08,2819.1,2819.0,4.50995721]
[1764567679417,1e-08,2819.1,2819.0,4.01965721]
[1764567680102,1e-08,2819.1,2819.0,4.05513078]
[1764567680302,1e-08,2819.1,2819.0,4.86442156]
[1764567681415,1e-08,2819.1,2819.0,5.35472156]
[1764567681803,1e-08,2819.1,2819.0,4.82894799]
[1764567683822,1e-08,2819.1,2819.0,4.82994799]
[1764567684537,1e-08,2819.1,2819.0,4.86542156]
[1764567685519,1e-08,2819.1,2819.0,4.82994799]
[1764567685730,1e-08,2819.1,2819.0,4.86542156]
[1764567686336,1e-08,2819.1,2819.0,4.05613078]
[1764567688952,1e-08,2819.1,2819.0,4.02065721]
[1764567689255,1e-08,2819.1,2819.0,4.05613078]
[1764567689755,0.46750001,2819.1,2819.0,3.54835721]
[1764567690050,0.46750001,2819.1,2819.0,0.001]
[1764567690259,1e-08,2819.1,2819.0,0.001]
[1764567690933,0.46750001,2819.1,2819.0,0.001]
[1764567693145,0.94460001,2819.1,2819.0,0.001]
[1764567693461,1.29779397,2819.1,2819.0,0.001]
[1764567693959,1.52283278,2819.1,2819.0,0.001]
[1764567695766,1.29779397,2819.1,2819.0,0.001]
[1764567703857,1e-08,2819.1,2819.0,0.4942]
[1764567704157,1e-08,2819.1,2819.0,0.9663]
[1764567705173,1e-08,2819.1,2819.0,4.51365721]
[1764567705396,1e-08,2819.1,2819.0,4.54913078]
[1764567705693,1e-08,2819.1,2819.0,5.35879151]
[1764567710597,1e-08,2819.1,2819.0,4.85121794]
[1764567710798,0.35319397,2819.1,2819.0,4.85121794]
[1764567711503,1e-08,2819.1,2819.0,4.85121794]
[1764567711704,1e-08,2819.1,2819.0,9.93438562]
[1764567711904,1e-08,2819.1,2819.0,11.16506814]
[1764567712502,1e-08,2819.1,2819.0,17.54040957]
[1764567712709,1e-08,2819.1,2819.0,10.69296814]
[1764567712878,1e-08,2819.1,2819.0,9.42681205]
[1764567713212,1e-08,2819.1,2819.0,9.90111205]
[1764567713393,1e-08,2819.1,2819.0,9.17551794]
[1764567714531,1e-08,2819.1,2819.0,9.90111205]
[1764567716999,1e-08,2819.1,2819.0,9.42681205]
[1764567719130,1e-08,2819.1,2819.0,8.70121794]
[1764567722835,1e-08,2819.1,2819.0,9.17551794]
[1764567723741,1e-08,2819.1,2819.0,5.32551794]
[1764567724045,1e-08,2819.1,2819.0,5.36099151]
[1764567724416,1e-08,2819.1,2819.0,5.32551794]
[1764567725008,1e-08,2819.1,2819.0,6.08658562]
[1764567725213,1e-08,2819.1,2819.0,7.35274171]
[1764567725413,1e-08,2819.1,2819.0,7.31726814]
[1764567726174,1e-08,2819.1,2819.0,9.90111205]
[1764567726555,1e-08,2819.1,2819.0,11.80049869]
[1764567727165,1e-08,2819.1,2819.0,12.63979639]
[1764567727632,1e-08,2819.1,2819.0,12.20600269]
[1764567727836,1e-08,2819.1,2819.0,12.43000269]
[1764567728373,1e-08,2819.1,2819.0,12.02449869]
[1764567728540,1e-08,2819.1,2819.0,10.12511205]
[1764567729349,1e-08,2819.1,2819.0,9.90111205]
[1764567729566,1e-08,2819.1,2819.0,10.12511205]
[1764567731872,1e-08,2819.1,2819.0,9.90111205]
[1764567732050,1e-08,2819.1,2819.0,16.50045348]
[1764567733450,1e-08,2819.1,2819.0,18.39984012]
[1764567734349,1e-08,2819.1,2819.0,16.27645348]
[1764567734556,1e-08,2819.1,2819.0,16.50045348]
[1764567737253,1e-08,2819.1,2819.0,17.93722201]
[1764567737465,1e-08,2819.1,2819.0,16.50045348]
[1764567737774,1e-08,2819.1,2819.0,18.41152201]
[1764567738347,1e-08,2819.4,2819.0,16.50045348]
[1764567738546,1e-08,2819.4,2819.3,9.02081662]
[1764567738986,1e-08,2819.4,2819.3,13.04209636]
[1764567741251,1e-08,2819.4,2819.3,12.79179636]
[1764567742077,1e-08,2819.4,2819.3,13.26609636]
[1764567744374,1e-08,2819.4,2819.3,17.11609636]
[1764567744556,1e-08,2819.4,2819.3,19.27522342]
[1764567745249,1e-08,2819.4,2819.3,18.80092342]
[1764567745576,1e-08,2819.4,2819.3,18.61982342]
[1764567745983,1e-08,2819.4,2819.3,18.39582342]
[1764567746389,0.46020001,2819.4,2819.3,17.93122342]
[1764567746605,0.93460001,2819.4,2819.3,3.54697974]
[1764567746763,0.93460001,2819.4,2819.3,3.58244953]
[1764567747090,0.93460001,2819.4,2819.3,3.54697974]
[1764567747448,0.93460001,2819.4,2819.0,10.64307163]
[1764567747654,0.477,2819.1,2819.0,4.27395132]
[1764567748075,0.9514,2819.1,2819.0,4.27395132]
[1764567749113,0.9514,2819.1,2819.0,3.54835721]
[1764567751327,0.9514,2819.1,2819.0,3.58383078]
[1764567751616,0.477,2819.1,2819.0,5.0857878]
[1764567751915,0.477,2819.1,2819.0,3.58383078]
[1764567752129,0.9514,2819.1,2819.0,3.58383078]
[1764567753219,0.9514,2819.1,2819.0,3.54835721]
[1764567754324,0.9514,2819.1,2819.0,3.58383078]
[1764567754615,0.9514,2819.1,2819.0,3.54835721]
[1764567755841,0.9514,2819.1,2819.0,0.001]
[1764567757045,0.9514,2819.1,2819.0,0.03647357]
[1764567757542,0.47440001,2819.4,2819.0,0.03647357]
[1764567757940,0.477,2819.1,2819.0,3.58383078]
[1764567758515,0.477,2819.1,2819.0,3.54835721]
[1764567758915,0.9514,2819.1,2819.0,3.54835721]
[1764567759848,0.9514,2819.1,2819.0,0.001]
[1764567761651,0.9514,2819.1,2819.0,0.03647357]
[1764567761847,0.477,2819.1,2819.0,0.03647357]
[1764567762048,0.9514,2819.1,2819.0,3.54835721]
[1764567765072,0.9514,2819.1,2819.0,3.58383078]
[1764567766344,1e-08,2819.4,2819.0,12.91348411]
[1764567766647,1e-08,2819.4,2819.2,6.6140807]
[1764567766865,1e-08,2819.4,2819.3,0.03546979]
[1764567767182,0.47440001,2819.4,2819.3,0.03546979]
[1764567767374,0.95140001,2819.4,2819.3,0.03546979]
[1764567768473,0.95140001,2819.4,2819.3,3.58244953]
[1764567768678,0.95140001,2819.4,2819.3,3.54697974]
[1764567768840,0.95140001,2819.4,2819.3,3.58244953]
[1764567770255,0.95140001,2819.4,2819.3,3.54697974]
[1764567770767,0.95140001,2819.4,2819.1,7.09446276]
[1764567770973,0.6656,2819.3,2819.1,7.09446276]
[1764567771283,0.4741,2819.2,2819.1,3.54723138]
[1764567771593,0.9485,2819.2,2819.1,3.58270369]
[1764567771755,0.9485,2819.2,2819.1,3.54723138]
[1764567773873,0.4741,2819.2,2819.1,3.58270369]
[1764567774466,0.9423,2819.2,2819.1,3.58270369]
[1764567775583,0.4741,2819.2,2819.1,3.58270369]
[1764567775949,1e-08,2819.4,2819.1,9.851914]
[1764567776190,0.46820001,2819.4,2819.1,9.81644169]
[1764567776359,0.46820001,2819.4,2819.2,0.03547105]
[1764567776559,0.46820001,2819.4,2819.1,9.33614169]
[1764567776765,0.4786,2819.2,2819.1,3.54723138]
[1764567777167,0.9468,2819.2,2819.1,3.54723138]
[1764567782466,1e-08,2819.4,2819.1,7.61023507]
[1764567782701,1e-08,2819.4,2819.2,6.6140807]
[1764567782907,1e-08,2819.4,2819.1,7.75586276]
[1764567782908,0.9468,2819.3,2819.1,7.09446276]
[1764567783206,0.1957,2819.2,2819.1,3.54723138]
[1764567783906,1e-08,2819.4,2819.1,7.61023507]
[1764567784196,0.46820001,2819.4,2819.1,7.57476276]
[1764567784517,0.46820001,2819.4,2819.2,0.03547105]
[1764567784898,0.4786,2819.3,2819.2,0.03547105]
[1764567785198,0.4786,2819.3,2819.1,7.09446276]
[1764567786514,0.1957,2819.2,2819.1,3.54723138]
[1764567787885,0.6639,2819.2,2819.1,3.54723138]
[1764567788634,0.6639,2819.2,2819.1,3.58270369]
[1764567791724,0.1957,2819.2,2819.1,3.58270369]
[1764567792309,0.6639,2819.2,2819.1,3.58270369]
[1764567793506,0.1957,2819.2,2819.1,3.58270369]
[1764567794820,1e-08,2819.4,2819.1,7.61023507]
[1764567796841,1e-08,2819.4,2819.2,2.24165418]
[1764567797031,1e-08,2819.4,2819.3,0.4803]
[1764567797242,1e-08,2819.4,2819.3,4.02727974]
[1764567797433,1e-08,2819.4,2819.3,3.54697974]
[1764567797434,0.47860001,2819.4,2819.3,3.54697974]
[1764567800139,1e-08,2819.4,2819.3,3.58244953]
[1764567800343,1e-08,2819.4,2819.3,4.06274953]
[1764567800540,1e-08,2819.4,2819.3,5.46778212]
[1764567800841,1e-08,2819.4,2819.3,12.47511764]
[1764567801053,1e-08,2819.4,2819.3,12.43964785]
[1764567801372,1e-08,2819.4,2819.3,10.52837623]
[1764567801664,1e-08,2819.4,2819.3,10.04337623]
[1764567801864,1e-08,2819.4,2819.3,10.52837623]
[1764567802225,1e-08,2819.4,2819.3,12.43964785]
[1764567802427,1e-08,2819.4,2819.3,10.52837623]
[1764567805328,1e-08,2819.4,2819.3,11.80407242]
[1764567808346,1e-08,2819.4,2819.3,18.17896101]
[1764567808569,1e-08,2819.4,2819.3,17.69396101]
[1764567808769,1e-08,2819.4,2819.3,10.04337623]
[1764567808983,1e-08,2819.4,2819.3,16.41826482]
[1764567809990,1e-08,2819.4,2819.3,16.88496482]
[1764567810198,1e-08,2819.4,2819.3,18.16066101]
[1764567811565,1e-08,2819.4,2819.3,17.69396101]
[1764567814584,1e-08,2819.4,2819.3,18.16066101]
[1764567816213,1e-08,2819.4,2819.3,11.78577242]
[1764567816509,1e-08,2819.4,2819.3,18.16066101]
[1764567816701,0.48222627,2819.8,2819.3,25.25462049]
[1764567817006,0.1948,2819.9,2819.5,10.64018442]
[1764567817194,0.1948,2819.9,2819.6,0.03546602]
[1764567817599,0.4976,2819.7,2819.6,0.03546602]
[1764567817910,0.4976,2819.7,2819.5,7.09345628]
[1764567818105,0.4976,2819.6,2819.5,3.54672814]
[1764567818275,0.4976,2819.6,2819.5,4.19963515]
[1764567818775,0.9835,2819.6,2819.5,4.19963515]
[1764567819077,0.4976,2819.6,2819.5,4.23510243]
[1764567820504,0.9835,2819.6,2819.5,4.19963515]
[1764567820706,0.9835,2819.6,2819.5,4.23510243]
[1764567821076,0.4976,2819.6,2819.5,4.23510243]
[1764567821814,0.4879,2819.8,2819.5,7.78183057]
[1764567822001,0.4879,2819.8,2819.5,7.74636329]
[1764567822201,0.4879,2819.8,2819.6,0.03546602]
[1764567822589,0.4976,2819.7,2819.6,0.03546602]
[1764567823311,0.4976,2819.7,2819.6,3.58206837]
[1764567823475,0.9835,2819.7,2819.6,3.58206837]
[1764567823873,0.9835,2819.7,2819.6,3.54660235]
[1764567824092,1.33669396,2819.7,2819.6,3.54660235]
[1764567824901,0.9835,2819.7,2819.6,3.54660235]
[1764567825313,0.9835,2819.7,2819.5,7.09345628]
[1764567825483,0.6422,2819.6,2819.5,3.54672814]
[1764567826009,0.99539396,2819.6,2819.5,3.54672814]
[1764567827181,0.6422,2819.6,2819.5,3.54672814]
[1764567827382,0.6422,2819.6,2819.3,0.001]
[1764567827584,0.4976,2819.4,2819.3,0.001]
[1764567828019,0.9835,2819.4,2819.3,0.001]
[1764567831908,0.4976,2819.4,2819.3,0.001]
[1764567832109,0.4976,2819.4,2819.3,7.08543487]
[1764567833493,0.4859,2819.6,2819.3,7.08543487]
[1764567833830,0.4859,2819.6,2819.5,3.54672814]
[1764567834126,0.9851,2819.6,2819.5,3.54672814]
[1764567834287,0.9851,2819.6,2819.5,3.58219542]
[1764567835189,0.9851,2819.6,2819.5,3.54672814]
[1764567835592,1.33829396,2819.6,2819.5,3.54672814]
[1764567835801,0.35319396,2819.5,2819.3,0.001]
[1764567836001,0.4992,2819.4,2819.3,0.001]
[1764567836624,0.9727,2819.4,2819.3,0.001]
[1764567836922,1.32589396,2819.4,2819.3,0.001]
[1764567837128,0.9727,2819.4,2819.3,0.001]
[1764567837822,1.32589396,2819.4,2819.3,0.001]
[1764567838225,0.9727,2819.4,2819.3,0.001]
[1764567838684,1.32589396,2819.4,2819.3,0.001]
[1764567838969,1.29042039,2819.4,2819.3,0.001]
[1764567840641,0.93722643,2819.4,2819.3,0.001]
[1764567840832,1.29042039,2819.4,2819.3,0.001]
[1764567841467,0.93722643,2819.4,2819.3,0.001]
[1764567842360,0.224,2819.5,2819.3,0.001]
[1764567842570,0.224,2819.5,2819.4,3.54685394]
[1764567842738,0.224,2819.5,2819.4,3.58232247]
[1764567842935,0.7232,2819.5,2819.4,3.58232247]
[1764567843136,0.002,2819.8,2819.4,11.84135977]
[1764567843362,0.4992,2819.5,2819.4,4.25988336]
[1764567844275,0.9727,2819.5,2819.4,3.54685394]
[1764567844632,0.9727,2819.5,2819.3,7.09495149]
[1764567844833,0.002,2819.8,2819.3,3.54797175]
[1764567844834,0.6048,2819.4,2819.3,3.54797175]
[1764567845068,0.95799396,2819.4,2819.3,3.54797175]
[1764567845860,0.95799396,2819.4,2819.3,0.001]
[1764567846063,1.36349796,2819.4,2819.3,0.001]
[1764567846264,2.13733662,2819.4,2819.3,0.001]
[1764567847350,1.36349796,2819.4,2819.3,0.001]
[1764567854235,1.36549796,2819.4,2819.3,0.001]
[1764567854640,35.63794601,2819.4,2819.3,0.001]
[1764567855286,0.405504,2819.3,2819.0,0.001]
[1764567855583,8.35478066,2819.1,2819.0,0.001]
[1764567855739,9.26000873,2819.1,2819.0,0.001]
[1764567855939,9.73350873,2819.1,2819.0,0.001]
[1764567856439,13.28074011,2819.1,2819.0,0.001]